[Event "ETCC Women 2013"]
[Site "Warsaw"]
[Date "2013.11.12"]
[Round "5"]
[White "Sedina, Elena"]
[Black "Ptacnikova, Lenka"]
[Result "1/2-1/2"]
[ECO "B01"]
[WhiteElo "2302"]
[BlackElo "2238"]
[PlyCount "97"]
[EventDate "2013.??.??"]
[EventCountry "POL"]
[WhiteTeam "Italy"]
[BlackTeam "Iceland"]
[WhiteTeamCountry "ITA"]
[BlackTeamCountry "ISL"]
[TimeControl "40/5400+30:1800+30"]

1. e4 {[%emt 0:00:00]} d5 {[%emt 0:00:00]} 2. exd5 {[%emt 0:00:00]} Qxd5 {
[%emt 0:00:00]} 3. Nc3 {[%emt 0:00:08]} Qd6 {[%emt 0:00:00]} 4. d4 {[%emt 0:00:
47]} Nf6 {[%emt 0:00:06]} 5. Nf3 {[%emt 0:01:26]} g6 {[%emt 0:00:25]} 6. Bc4 {
[%emt 0:12:01]} Bg7 {[%emt 0:00:16]} 7. O-O {[%emt 0:00:12]} O-O {[%emt 0:01:
17]} 8. h3 {[%emt 0:06:28]} c6 {[%emt 0:09:48]} 9. a4 {[%emt 0:20:02]} Be6 {
[%emt 0:06:58]} 10. Bd3 {[%emt 0:09:10]} Nbd7 {[%emt 0:05:56]} 11. Re1 {[%emt
0:04:25]} Nb6 {[%emt 0:03:36]} 12. a5 {[%emt 0:16:04]} Nbd5 {[%emt 0:07:26]}
13. Ng5 {[%emt 0:02:35]} Bd7 {[%emt 0:11:02]} 14. Nxd5 {[%emt 0:08:19]} cxd5 {
[%emt 0:09:34]} 15. c3 {[%emt 0:00:55]} Rfe8 {[%emt 0:04:34]} 16. Nf3 {[%emt 0:
01:16]} b5 {[%emt 0:16:13]} 17. Ne5 {[%emt 0:01:05]} Qc7 {[%emt 0:04:43]} 18.
Bf4 {[%emt 0:02:00]} Qc8 {[%emt 0:00:07]} 19. a6 {[%emt 0:00:39]} Nh5 {[%emt 0:
04:27]} 20. Bh2 {[%emt 0:00:52]} Bxe5 {[%emt 0:01:30]} 21. Rxe5 {[%emt 0:01:58]
} Nf6 {[%emt 0:00:44]} 22. Qe2 {[%emt 0:00:35]} e6 {[%emt 0:00:42]} 23. Bxb5 {
[%emt 0:05:18]} Bxb5 {[%emt 0:00:09]} 24. Qxb5 {[%emt 0:00:02]} Rb8 {[%emt 0:
00:15]} 25. Qe2 {[%emt 0:00:25]} Rb6 {[%emt 0:00:12]} 26. Re3 {[%emt 0:00:35]}
Qc4 {[%emt 0:01:51]} 27. Bf4 {[%emt 0:04:16]} Qxe2 {[%emt 0:01:10]} 28. Rxe2 {
[%emt 0:00:01]} Rc8 {[%emt 0:00:15]} 29. f3 {[%emt 0:01:23]} Rcc6 {[%emt 0:00:
43]} 30. Bh6 {[%emt 0:01:15]} Nd7 {[%emt 0:00:29]} 31. Kf2 {[%emt 0:00:28]} f6
{[%emt 0:00:55]} 32. h4 {[%emt 0:00:28]} Kf7 {[%emt 0:00:13]} 33. g4 {[%emt 0:
00:37]} Rxa6 {[%emt 0:00:59]} 34. Rxa6 {[%emt 0:00:36]} Rxa6 {[%emt 0:00:03]}
35. Bf4 {[%emt 0:00:19]} Ra1 {[%emt 0:02:06]} 36. b3 {[%emt 0:00:43]} Ra3 {
[%emt 0:04:28]} 37. Rb2 {[%emt 0:00:07]} e5 {[%emt 0:00:11]} 38. Be3 {[%emt 0:
00:39]} Ke6 {[%emt 0:00:54]} 39. c4 {[%emt 0:00:42]} dxc4 {[%emt 0:04:15]} 40.
bxc4 {[%emt 0:00:00]} exd4 {[%emt 0:00:00]} 41. Bxd4 {[%emt 0:00:23]} Ne5 {
[%emt 0:00:46]} 42. Bxe5 {[%emt 0:11:07]} Kxe5 {[%emt 0:09:35]} 43. c5 {[%emt
0:01:14]} Rc3 {[%emt 0:01:26]} 44. Ra2 {[%emt 0:06:50]} Rxc5 {[%emt 0:04:02]}
45. Rxa7 {[%emt 0:00:05]} h5 {[%emt 0:01:43]} 46. Re7+ {[%emt 0:00:08]} Kd6 {
[%emt 0:01:34]} 47. Rg7 {[%emt 0:00:36]} hxg4 {[%emt 0:00:37]} 48. fxg4 {[%emt
0:00:47]} g5 {[%emt 0:03:32]} 49. hxg5 {[%emt 0:05:26]} 1/2-1/2

[Event "ETCC Women 2013"]
[Site "Warsaw"]
[Date "2013.11.12"]
[Round "5"]
[White "Stefanova, Antoaneta"]
[Black "Cmilyte, Viktorija"]
[Result "1/2-1/2"]
[ECO "D85"]
[WhiteElo "2494"]
[BlackElo "2506"]
[PlyCount "103"]
[EventDate "2013.??.??"]
[EventCountry "POL"]
[WhiteTeam "Bulgaria"]
[BlackTeam "Lithuania"]
[WhiteTeamCountry "BUL"]
[BlackTeamCountry "LTU"]
[TimeControl "40/5400+30:1800+30"]

1. d4 {[%emt 0:00:00]} Nf6 {[%emt 0:00:00]} 2. c4 {[%emt 0:00:00]} g6 {[%emt 0:
00:00]} 3. Nc3 {[%emt 0:00:00]} d5 {[%emt 0:00:00]} 4. cxd5 {[%emt 0:00:00]}
Nxd5 {[%emt 0:00:00]} 5. Bd2 {[%emt 0:00:00]} Bg7 {[%emt 0:00:16]} 6. e4 {
[%emt 0:00:06]} Nxc3 {[%emt 0:00:40]} 7. Bxc3 {[%emt 0:00:06]} c5 {[%emt 0:00:
17]} 8. d5 {[%emt 0:00:26]} Bxc3+ {[%emt 0:00:08]} 9. bxc3 {[%emt 0:00:04]} O-O
{[%emt 0:00:09]} 10. Qd2 {[%emt 0:05:02]} e6 {[%emt 0:00:48]} 11. d6 {[%emt 0:
00:17]} Bd7 {[%emt 0:00:50]} 12. h4 {[%emt 0:15:59]} Bc6 {[%emt 0:01:48]} 13.
e5 {[%emt 0:02:42]} Nd7 {[%emt 0:02:54]} 14. Qe3 {[%emt 0:00:43]} f6 {[%emt 0:
07:41]} 15. h5 {[%emt 0:02:07]} g5 {[%emt 0:01:59]} 16. exf6 {[%emt 0:12:16]}
Qxf6 {[%emt 0:00:58]} 17. h6 {[%emt 0:04:43]} Qe5 {[%emt 0:09:20]} 18. Rh5 {
[%emt 0:07:04]} Qxe3+ {[%emt 0:13:48]} 19. fxe3 {[%emt 0:00:08]} Kh8 {[%emt 0:
01:38]} 20. Rxg5 {[%emt 0:04:04]} Rf6 {[%emt 0:01:54]} 21. Nf3 {[%emt 0:02:47]}
Raf8 {[%emt 0:04:21]} 22. O-O-O {[%emt 0:04:02]} Rxh6 {[%emt 0:01:53]} 23. Bc4
{[%emt 0:01:44]} b5 {[%emt 0:05:03]} 24. Bd3 {[%emt 0:17:23]} Rg8 {[%emt 0:09:
38]} 25. Rf1 {[%emt 0:03:52]} Rf6 {[%emt 0:01:35]} 26. Rh1 {[%emt 0:03:37]} h6
{[%emt 0:03:02]} 27. Rgh5 {[%emt 0:00:14]} Kg7 {[%emt 0:02:30]} 28. Ne5 {[%emt
0:06:48]} Nxe5 {[%emt 0:02:04]} 29. Rxe5 {[%emt 0:00:02]} Rd8 {[%emt 0:00:49]}
30. Rxc5 {[%emt 0:01:58]} Rxd6 {[%emt 0:00:08]} 31. Bxb5 {[%emt 0:00:24]} Bxb5
{[%emt 0:06:26]} 32. Rxb5 {[%emt 0:00:02]} Rd3 {[%emt 0:00:22]} 33. Rb7+ {
[%emt 0:03:01]} Kg6 {[%emt 0:00:12]} 34. Rxa7 {[%emt 0:00:04]} Rf2 {[%emt 0:00:
38]} 35. c4 {[%emt 0:04:12]} Rxe3 {[%emt 0:04:38]} 36. Kb1 {[%emt 0:00:03]}
Ree2 {[%emt 0:01:30]} 37. Rb7 {[%emt 0:00:52]} Rxa2 {[%emt 0:08:28]} 38. Rc1 {
[%emt 0:00:23]} Rxg2 {[%emt 0:06:39]} 39. c5 {[%emt 0:00:08]} Ra8 {[%emt 0:00:
25]} 40. c6 {[%emt 0:00:00]} Rga2 {[%emt 0:00:00]} 41. Rc3 {[%emt 0:06:31]}
R8a3 {[%emt 0:09:34]} 42. Rbb3 {[%emt 0:15:15]} Rxb3+ {[%emt 0:01:56]} 43. Rxb3
{[%emt 0:00:01]} Ra8 {[%emt 0:00:56]} 44. Kc2 {[%emt 0:04:51]} Rc8 {[%emt 0:00:
30]} 45. Rc3 {[%emt 0:00:03]} Kf6 {[%emt 0:00:32]} 46. Kd3 {[%emt 0:05:26]} Ke5
{[%emt 0:02:20]} 47. Rc2 {[%emt 0:02:00]} Kd6 {[%emt 0:02:26]} 48. Ke4 {[%emt
0:00:08]} Rxc6 {[%emt 0:16:36]} 49. Rd2+ {[%emt 0:00:19]} Ke7 {[%emt 0:00:12]}
50. Rh2 {[%emt 0:00:04]} Rc4+ {[%emt 0:00:49]} 51. Kd3 {[%emt 0:00:04]} Ra4 {
[%emt 0:00:26]} 52. Rxh6 {[%emt 0:00:05]} 1/2-1/2

[Event "ETCC Women 2013"]
[Site "Warsaw"]
[Date "2013.11.12"]
[Round "5"]
[White "Szczepkowska-Horowska, Karina"]
[Black "Zhukova, Natalia"]
[Result "1/2-1/2"]
[ECO "C03"]
[WhiteElo "2382"]
[BlackElo "2466"]
[PlyCount "61"]
[EventDate "2013.??.??"]
[EventCountry "POL"]
[WhiteTeam "Poland"]
[BlackTeam "Ukraine"]
[WhiteTeamCountry "POL"]
[BlackTeamCountry "UKR"]
[TimeControl "40/5400+30:1800+30"]

1. e4 {[%emt 0:00:00]} e6 {[%emt 0:00:00]} 2. d4 {[%emt 0:00:00]} d5 {[%emt 0:
00:00]} 3. Nd2 {[%emt 0:00:00]} a6 {[%emt 0:00:25]} 4. Ngf3 {[%emt 0:00:39]} c5
{[%emt 0:00:21]} 5. dxc5 {[%emt 0:00:49]} Bxc5 {[%emt 0:00:35]} 6. Bd3 {[%emt
0:00:44]} Ne7 {[%emt 0:02:47]} 7. O-O {[%emt 0:01:18]} Nbc6 {[%emt 0:00:17]} 8.
c3 {[%emt 0:05:46]} O-O {[%emt 0:03:36]} 9. Nb3 {[%emt 0:01:52]} Ba7 {[%emt 0:
08:27]} 10. Qe2 {[%emt 0:07:51]} Ng6 {[%emt 0:03:00]} 11. Nbd4 {[%emt 0:04:18]}
dxe4 {[%emt 0:27:15]} 12. Bxe4 {[%emt 0:06:17]} Bxd4 {[%emt 0:05:49]} 13. Nxd4
{[%emt 0:02:38]} Nxd4 {[%emt 0:00:22]} 14. cxd4 {[%emt 0:00:03]} Qxd4 {[%emt 0:
00:19]} 15. Rd1 {[%emt 0:02:43]} Qf6 {[%emt 0:03:17]} 16. Be3 {[%emt 0:05:11]}
e5 {[%emt 0:05:22]} 17. g3 {[%emt 0:06:06]} Re8 {[%emt 0:03:58]} 18. Rac1 {
[%emt 0:03:40]} Nf8 {[%emt 0:04:08]} 19. h4 {[%emt 0:12:56]} h6 {[%emt 0:02:22]
} 20. a4 {[%emt 0:07:46]} Bd7 {[%emt 0:05:02]} 21. Rxd7 {[%emt 0:08:31]} Nxd7 {
[%emt 0:00:13]} 22. Bxb7 {[%emt 0:00:12]} Rab8 {[%emt 0:07:29]} 23. Bxa6 {
[%emt 0:01:53]} Rxb2 {[%emt 0:00:24]} 24. Qxb2 {[%emt 0:00:11]} Qxa6 {[%emt 0:
00:05]} 25. Qb5 {[%emt 0:10:35]} Qxb5 {[%emt 0:01:06]} 26. axb5 {[%emt 0:00:01]
} Rb8 {[%emt 0:00:22]} 27. Rc7 {[%emt 0:00:46]} Nf6 {[%emt 0:10:17]} 28. Rc5 {
[%emt 0:03:57]} Nd7 {[%emt 0:00:12]} 29. Rc7 {[%emt 0:00:50]} Nf6 {[%emt 0:00:
03]} 30. Rc5 {[%emt 0:03:05]} Nd7 {[%emt 0:00:03]} 31. Rc7 {[%emt 0:00:05]}
1/2-1/2

[Event "ETCC Women 2013"]
[Site "Warsaw"]
[Date "2013.11.12"]
[Round "5"]
[White "Thorsteinsdottir, Hallgerdur"]
[Black "Zimina, Olga"]
[Result "0-1"]
[ECO "D11"]
[WhiteElo "1951"]
[BlackElo "2338"]
[PlyCount "114"]
[EventDate "2013.??.??"]
[EventCountry "POL"]
[WhiteTeam "Iceland"]
[BlackTeam "Italy"]
[WhiteTeamCountry "ISL"]
[BlackTeamCountry "ITA"]
[TimeControl "40/5400+30:1800+30"]

1. d4 {[%emt 0:00:00]} d5 {[%emt 0:00:00]} 2. c4 {[%emt 0:00:00]} c6 {[%emt 0:
00:00]} 3. Nf3 {[%emt 0:00:02]} Nf6 {[%emt 0:00:00]} 4. e3 {[%emt 0:00:17]} e6
{[%emt 0:00:00]} 5. b3 {[%emt 0:00:22]} Bb4+ {[%emt 0:00:00]} 6. Nbd2 {[%emt 0:
00:27]} Ne4 {[%emt 0:00:06]} 7. Bb2 {[%emt 0:00:33]} f5 {[%emt 0:00:40]} 8. Bd3
{[%emt 0:04:47]} Nd7 {[%emt 0:01:02]} 9. a3 {[%emt 0:01:16]} Bd6 {[%emt 0:00:
08]} 10. Ne5 {[%emt 0:01:57]} Qf6 {[%emt 0:04:51]} 11. Ndf3 {[%emt 0:04:14]}
O-O {[%emt 0:01:12]} 12. O-O {[%emt 0:06:47]} Qh6 {[%emt 0:04:01]} 13. Nxd7 {
[%emt 0:03:58]} Bxd7 {[%emt 0:00:02]} 14. Ne5 {[%emt 0:01:37]} Nf6 {[%emt 0:06:
40]} 15. Qd2 {[%emt 0:06:42]} Ng4 {[%emt 0:13:42]} 16. h3 {[%emt 0:01:04]} Nf6
{[%emt 0:03:12]} 17. f4 {[%emt 0:23:59]} g5 {[%emt 0:07:39]} 18. Qf2 {[%emt 0:
01:05]} Qg7 {[%emt 0:05:21]} 19. Rac1 {[%emt 0:07:27]} g4 {[%emt 0:06:54]} 20.
hxg4 {[%emt 0:01:43]} Nxg4 {[%emt 0:01:28]} 21. Nxg4 {[%emt 0:01:56]} Qxg4 {
[%emt 0:00:23]} 22. Be2 {[%emt 0:02:35]} Qg7 {[%emt 0:00:49]} 23. Qh4 {[%emt 0:
02:14]} Be7 {[%emt 0:05:33]} 24. Qh3 {[%emt 0:00:44]} Rf6 {[%emt 0:01:10]} 25.
Kf2 {[%emt 0:11:12]} Rh6 {[%emt 0:03:42]} 26. Qf3 {[%emt 0:00:09]} Rh2 {[%emt
0:04:25]} 27. Rh1 {[%emt 0:01:08]} Bh4+ {[%emt 0:01:43]} 28. Kg1 {[%emt 0:00:
06]} Rxh1+ {[%emt 0:00:08]} 29. Kxh1 {[%emt 0:00:07]} Bg3 {[%emt 0:04:13]} 30.
Bc3 {[%emt 0:04:37]} Be8 {[%emt 0:09:11]} 31. Kg1 {[%emt 0:00:57]} Bh4 {[%emt
0:03:26]} 32. Be1 {[%emt 0:01:34]} Bf6 {[%emt 0:02:02]} 33. b4 {[%emt 0:03:36]}
a6 {[%emt 0:00:31]} 34. Qh3 {[%emt 0:00:54]} Bg6 {[%emt 0:04:23]} 35. Kf1 {
[%emt 0:02:54]} Qe7 {[%emt 0:02:10]} 36. c5 {[%emt 0:01:30]} Kh8 {[%emt 0:02:
06]} 37. Bg3 {[%emt 0:01:28]} Kg7 {[%emt 0:01:08]} 38. Bf3 {[%emt 0:00:43]} a5
{[%emt 0:00:12]} 39. Be1 {[%emt 0:00:26]} axb4 {[%emt 0:00:19]} 40. Bxb4 {
[%emt 0:00:00]} h5 {[%emt 0:00:00]} 41. Ra1 {[%emt 0:08:09]} h4 {[%emt 0:03:33]
} 42. g4 {[%emt 0:03:45]} fxg4 {[%emt 0:06:53]} 43. Bxg4 {[%emt 0:00:06]} Kf7 {
[%emt 0:00:34]} 44. Ke2 {[%emt 0:02:05]} Rh8 {[%emt 0:01:28]} 45. Rg1 {[%emt 0:
02:47]} Be4 {[%emt 0:06:16]} 46. Ba5 {[%emt 0:03:08]} Rh6 {[%emt 0:01:15]} 47.
Bb6 {[%emt 0:02:06]} Qd7 {[%emt 0:04:44]} 48. a4 {[%emt 0:00:45]} Ke7 {[%emt 0:
01:35]} 49. Kf2 {[%emt 0:02:09]} Qc8 {[%emt 0:00:54]} 50. a5 {[%emt 0:03:17]}
Bf5 {[%emt 0:04:46]} 51. Qh1 {[%emt 0:04:14]} Bxg4 {[%emt 0:00:57]} 52. Rxg4 {
[%emt 0:00:07]} h3 {[%emt 0:00:33]} 53. Qg1 {[%emt 0:01:45]} Kf7 {[%emt 0:01:
10]} 54. Kf3 {[%emt 0:02:07]} h2 {[%emt 0:01:17]} 55. Qh1 {[%emt 0:00:13]} Qh8
{[%emt 0:00:50]} 56. Rg2 {[%emt 0:01:16]} Qh7 {[%emt 0:00:55]} 57. Kg3 {[%emt
0:02:12]} Rh3+ {[%emt 0:00:38]} 0-1

[Event "ETCC Women 2013"]
[Site "Warsaw"]
[Date "2013.11.12"]
[Round "5"]
[White "Tuominen, Tanja"]
[Black "Ciuksyte, Dagne"]
[Result "0-1"]
[ECO "B22"]
[WhiteElo "2105"]
[BlackElo "2355"]
[PlyCount "124"]
[EventDate "2013.??.??"]
[EventCountry "POL"]
[WhiteTeam "Finland"]
[BlackTeam "England"]
[WhiteTeamCountry "FIN"]
[BlackTeamCountry "ENG"]
[TimeControl "40/5400+30:1800+30"]

1. e4 {[%emt 0:00:00]} c5 {[%emt 0:00:00]} 2. c3 {[%emt 0:00:00]} Nf6 {[%emt 0:
00:26]} 3. e5 {[%emt 0:00:00]} Nd5 {[%emt 0:00:06]} 4. d4 {[%emt 0:00:09]} cxd4
{[%emt 0:00:10]} 5. Nf3 {[%emt 0:00:11]} e6 {[%emt 0:00:58]} 6. cxd4 {[%emt 0:
02:04]} d6 {[%emt 0:00:23]} 7. Bc4 {[%emt 0:00:47]} Nc6 {[%emt 0:01:03]} 8. O-O
{[%emt 0:00:22]} Be7 {[%emt 0:00:58]} 9. a3 {[%emt 0:02:47]} O-O {[%emt 0:05:
03]} 10. Re1 {[%emt 0:06:45]} a6 {[%emt 0:10:22]} 11. Bd3 {[%emt 0:15:26]} dxe5
{[%emt 0:07:45]} 12. dxe5 {[%emt 0:02:48]} Qc7 {[%emt 0:04:27]} 13. Qc2 {[%emt
0:05:03]} g6 {[%emt 0:05:59]} 14. Nc3 {[%emt 0:13:51]} Rd8 {[%emt 0:02:41]} 15.
Nxd5 {[%emt 0:04:20]} Rxd5 {[%emt 0:04:50]} 16. Bf4 {[%emt 0:02:22]} b5 {[%emt
0:06:34]} 17. Be4 {[%emt 0:07:36]} Rc5 {[%emt 0:00:32]} 18. Qe2 {[%emt 0:01:05]
} Bb7 {[%emt 0:04:17]} 19. Be3 {[%emt 0:02:35]} Rc4 {[%emt 0:02:28]} 20. Bd3 {
[%emt 0:01:16]} Ra4 {[%emt 0:01:42]} 21. Bc2 {[%emt 0:07:45]} Rg4 {[%emt 0:06:
00]} 22. g3 {[%emt 0:08:33]} Rc8 {[%emt 0:09:22]} 23. h3 {[%emt 0:02:49]} Rc4 {
[%emt 0:01:18]} 24. Bd3 {[%emt 0:11:37]} Nxe5 {[%emt 0:01:46]} 25. Nxe5 {[%emt
0:00:06]} Qxe5 {[%emt 0:00:09]} 26. Bxc4 {[%emt 0:01:50]} Rxc4 {[%emt 0:00:22]}
27. Kh2 {[%emt 0:00:43]} Qe4 {[%emt 0:07:08]} 28. Rg1 {[%emt 0:00:12]} Rc2 {
[%emt 0:01:27]} 29. Qd1 {[%emt 0:00:50]} Rxb2 {[%emt 0:03:43]} 30. Qd4 {[%emt
0:00:15]} Qxd4 {[%emt 0:05:49]} 31. Bxd4 {[%emt 0:00:02]} Rd2 {[%emt 0:00:05]}
32. Rgd1 {[%emt 0:00:51]} Rxd1 {[%emt 0:00:54]} 33. Rxd1 {[%emt 0:00:04]} Bxa3
{[%emt 0:03:24]} 34. Bf6 {[%emt 0:00:18]} Bd5 {[%emt 0:00:04]} 35. Ra1 {[%emt
0:01:05]} b4 {[%emt 0:00:13]} 36. g4 {[%emt 0:00:51]} Kf8 {[%emt 0:00:50]} 37.
Kg3 {[%emt 0:00:38]} h6 {[%emt 0:02:14]} 38. h4 {[%emt 0:00:21]} a5 {[%emt 0:
02:22]} 39. Kf4 {[%emt 0:00:37]} a4 {[%emt 0:00:30]} 40. Rxa3 {[%emt 0:00:00]}
bxa3 {[%emt 0:00:00]} 41. g5 {[%emt 0:06:33]} hxg5+ {[%emt 0:04:25]} 42. hxg5 {
[%emt 0:02:57]} a2 {[%emt 0:00:29]} 43. Bc3 {[%emt 0:01:49]} Ke7 {[%emt 0:01:
03]} 44. Ke5 {[%emt 0:01:01]} Kd7 {[%emt 0:03:44]} 45. Kd4 {[%emt 0:07:27]} Kc6
{[%emt 0:07:08]} 46. Bb2 {[%emt 0:02:12]} e5+ {[%emt 0:06:51]} 47. Kd3 {[%emt
0:03:15]} Kd6 {[%emt 0:01:12]} 48. Kc3 {[%emt 0:01:22]} Ke6 {[%emt 0:02:12]}
49. Kb4 {[%emt 0:00:49]} Bb3 {[%emt 0:00:06]} 50. Bc3 {[%emt 0:02:42]} Kf5 {
[%emt 0:00:08]} 51. Ka3 {[%emt 0:03:20]} e4 {[%emt 0:00:09]} 52. Bf6 {[%emt 0:
00:22]} a1=Q+ {[%emt 0:00:25]} 53. Bxa1 {[%emt 0:00:04]} Kxg5 {[%emt 0:00:06]}
54. Bd4 {[%emt 0:01:31]} Kf4 {[%emt 0:01:51]} 55. Kb2 {[%emt 0:00:45]} Kf3 {
[%emt 0:00:12]} 56. Kc3 {[%emt 0:00:38]} Ke2 {[%emt 0:01:40]} 57. Be3 {[%emt 0:
00:27]} f5 {[%emt 0:00:24]} 58. Bc5 {[%emt 0:02:14]} g5 {[%emt 0:00:46]} 59.
Bd4 {[%emt 0:00:37]} f4 {[%emt 0:00:37]} 60. Bf6 {[%emt 0:00:26]} g4 {[%emt 0:
02:34]} 61. Be5 {[%emt 0:00:27]} f3 {[%emt 0:00:39]} 62. Bd4 {[%emt 0:00:31]}
e3 {[%emt 0:00:45]} 0-1

[Event "ETCC Women 2013"]
[Site "Warsaw"]
[Date "2013.11.12"]
[Round "5"]
[White "Unuk, Laura"]
[Black "Machlik, Monika"]
[Result "0-1"]
[ECO "A37"]
[WhiteElo "1991"]
[BlackElo "1936"]
[PlyCount "112"]
[EventDate "2013.??.??"]
[EventCountry "POL"]
[WhiteTeam "Slovenia"]
[BlackTeam "Norway"]
[WhiteTeamCountry "SLO"]
[BlackTeamCountry "NOR"]
[TimeControl "40/5400+30:1800+30"]

1. c4 {[%emt 0:00:00]} c5 {[%emt 0:00:00]} 2. Nc3 {[%emt 0:00:00]} Nc6 {[%emt
0:00:00]} 3. g3 {[%emt 0:00:00]} g6 {[%emt 0:00:01]} 4. Bg2 {[%emt 0:00:49]}
Bg7 {[%emt 0:00:06]} 5. Nf3 {[%emt 0:00:05]} Nh6 {[%emt 0:01:17]} 6. O-O {
[%emt 0:13:59]} Nf5 {[%emt 0:04:38]} 7. a3 {[%emt 0:04:33]} O-O {[%emt 0:01:34]
} 8. Ne1 {[%emt 0:00:51]} d6 {[%emt 0:17:30]} 9. Rb1 {[%emt 0:03:52]} Ne5 {
[%emt 0:13:26]} 10. d3 {[%emt 0:03:11]} Rb8 {[%emt 0:03:09]} 11. e4 {[%emt 0:
07:49]} Nd4 {[%emt 0:02:15]} 12. f4 {[%emt 0:01:29]} Nec6 {[%emt 0:04:32]} 13.
b4 {[%emt 0:05:30]} cxb4 {[%emt 0:20:20]} 14. axb4 {[%emt 0:01:11]} b5 {[%emt
0:01:02]} 15. Be3 {[%emt 0:06:17]} Bd7 {[%emt 0:06:56]} 16. g4 {[%emt 0:15:23]}
Rb7 {[%emt 0:02:45]} 17. e5 {[%emt 0:07:29]} dxe5 {[%emt 0:04:39]} 18. Bxd4 {
[%emt 0:03:06]} exd4 {[%emt 0:00:14]} 19. Nxb5 {[%emt 0:08:29]} a6 {[%emt 0:00:
51]} 20. Na3 {[%emt 0:04:02]} Rxb4 {[%emt 0:01:49]} 21. Nec2 {[%emt 0:02:48]}
Rxb1 {[%emt 0:00:47]} 22. Qxb1 {[%emt 0:01:11]} Qc7 {[%emt 0:00:34]} 23. h3 {
[%emt 0:01:37]} Rb8 {[%emt 0:01:18]} 24. Qa2 {[%emt 0:01:30]} Nd8 {[%emt 0:01:
50]} 25. Ne1 {[%emt 0:03:31]} Bc6 {[%emt 0:00:49]} 26. Nac2 {[%emt 0:01:50]}
Bxg2 {[%emt 0:01:07]} 27. Nxg2 {[%emt 0:00:10]} Qb7 {[%emt 0:01:01]} 28. Ra1 {
[%emt 0:01:15]} Ra8 {[%emt 0:01:41]} 29. Kf2 {[%emt 0:01:40]} Ne6 {[%emt 0:02:
55]} 30. Qa5 {[%emt 0:00:46]} Qb8 {[%emt 0:01:39]} 31. f5 {[%emt 0:00:33]} Nf4
{[%emt 0:01:11]} 32. Nxf4 {[%emt 0:00:30]} Qxf4+ {[%emt 0:00:02]} 33. Ke2 {
[%emt 0:00:26]} Qh2+ {[%emt 0:00:59]} 34. Kd1 {[%emt 0:00:01]} Qxh3 {[%emt 0:
00:49]} 35. fxg6 {[%emt 0:00:53]} hxg6 {[%emt 0:01:54]} 36. Qd2 {[%emt 0:00:40]
} Qxg4+ {[%emt 0:00:25]} 37. Qe2 {[%emt 0:00:05]} Qg1+ {[%emt 0:00:56]} 38. Qe1
{[%emt 0:00:49]} Qg4+ {[%emt 0:00:25]} 39. Qe2 {[%emt 0:00:05]} Qg1+ {[%emt 0:
01:02]} 40. Qe1 {[%emt 0:00:00]} Qxe1+ {[%emt 0:00:00]} 41. Nxe1 {[%emt 0:00:
49]} f5 {[%emt 0:03:16]} 42. Ke2 {[%emt 0:00:19]} a5 {[%emt 0:01:50]} 43. Ra4 {
[%emt 0:04:13]} e5 {[%emt 0:03:49]} 44. c5 {[%emt 0:01:30]} g5 {[%emt 0:01:28]}
45. c6 {[%emt 0:01:51]} g4 {[%emt 0:00:25]} 46. c7 {[%emt 0:00:41]} Rc8 {[%emt
0:00:53]} 47. Rc4 {[%emt 0:00:05]} Bf6 {[%emt 0:03:00]} 48. Nc2 {[%emt 0:00:46]
} Be7 {[%emt 0:00:43]} 49. Na1 {[%emt 0:00:50]} a4 {[%emt 0:01:19]} 50. Rxa4 {
[%emt 0:00:12]} Rxc7 {[%emt 0:00:04]} 51. Ra5 {[%emt 0:00:19]} Bf6 {[%emt 0:01:
16]} 52. Nb3 {[%emt 0:00:16]} Rc2+ {[%emt 0:00:57]} 53. Kf1 {[%emt 0:00:16]} g3
{[%emt 0:02:30]} 54. Nc5 {[%emt 0:00:25]} g2+ {[%emt 0:01:57]} 55. Kg1 {[%emt
0:00:35]} Bg5 {[%emt 0:00:32]} 56. Ra8+ {[%emt 0:00:06]} Kh7 0-1